Workbook

Sheet Intro
A1: What is this excel notebook about?
A2: This notebook explores different flavors/variations of Stochastic Gradient Descent, the key optimization method used in Deep Learning.
A3: To keep things simple, instead of working with neural networks here, we will use a simple linear model (y=ax+b). However, the optimization methods are the same for NNs.
A5: Goal: We want to create a model so that we can predict y when we're given x.
A6: To build the model, we are given training data x, y and we want to find an optimal a, b to create a model of the form y = ax + b.
A8: The key idea of SGD:
A9: 1. Randomly choose some weights to start.
A10: 2. Use those weights to calculate a prediciton, calculate the error/loss, and then update those weights.
A11: 3. Repeat step 2 lots of times. Eventually we end up with some decent weights.
A13: How does this relate to NNs? To make an analogy with CNNs: x would be our images, y would be the dog/cat labels, and a and b are the weights.
A14: We are trying to find the optimal weights (a, b). We use the same optimization methods to find weights for our NNs.
A16: Overview of the sheets in this notebook:
A17: data: | B17: Here we randomly generate some training data x and y that we will use on the other sheets. In the real world, you would get your x and y data from another source. In our CNN, x is the image data and y is the category (dog or cat).
B18: We create our data by arbitrarily choosing a and b (a=2, b=30), randomly generating x, and then calculating y = ax + b. We are going to pretend we don't know the true values of a and b, and see if our optimization algorithms help us find them.
B19: We can get a sense of how good our answers are, since really we know what the "true" a and b are.
A20: basic SGD: | B20: This is the most basic, vanilla form of stochastic gradient descent. If we were doing gradient descent (not stochastic!), we would evaluate our error on all our data, and then update the weights a, b.
B21: What makes it stochastic is that we're just evaluating the error on a subset of our data (in this case, a single data point. For NNs, this is called our "mini-batch") and then updating the weights.
A22: momentum: | B22: Accelerate SGD in the relevant direction and dampen side-to-side oscillations
B23: It does this by combining a decaying average of previous gradients with the current gradient
A24: adagrad: | B24: Adapts the learning rate by dividing by the sqrt of the avg of the previous gradients squared
A25: rmsprop: | B25: Adapts the learning rate by dividing by exponentially decaying average of squared gradients
A26: adam: | B26: rmsprop + momentum
A27: eve: | B27: Modifies learning rate based on recent volatility of loss
A28: adagrad_ann: | B28: adagrad with learning rate annealling
A29: adam_ann: | B29: adam with learning rate annealling
B31: On each sheet, click 'reset' to return the a and b guesses to 1.
B32: Click 'run' to copy the last row's updated a and b guesses to the top row, and recalculate, a few times. (Each is effectively one epoch)
A34: Some comments have been added to the other sheets in this notebook.
A35: Comments are indicated by a small red triangle in the corner of a cell. Hover your mouse over that cell to read the comment.

Sheet data
A1: weights:
A2: b | B2: const | C2: 30
A3: a | B3: slope | C3: 2
B5: x | C5: y=a*x + b
B6: =RANDBETWEEN(1,100) -> 76 | C6: =$C$2+B6*$C$3 -> 182
B7: 71 | C7: =$C$2+B7*$C$3 -> 172
B8: 79 | C8: 188
B9: 25 | C9: 80
B10: 51 | C10: 132
B11: 6 | C11: 42
B12: 6 | C12: 42
B13: 65 | C13: 160
B14: 20 | C14: 70
B15: 8 | C15: 46
B16: 11 | C16: 52
B17: 24 | C17: 78
B18: 69 | C18: 168
B19: 31 | C19: 92
B20: 9 | C20: 48
B21: 63 | C21: 156
B22: 29 | C22: 88
B23: 40 | C23: 110
B24: 27 | C24: 84
B25: 68 | C25: 166
B26: 45 | C26: 120
B27: 96 | C27: 222
B28: 82 | C28: 194
B29: 94 | C29: 218
B30: 69 | C30: 168
B31: 14 | C31: 58
B32: 86 | C32: 202
B33: 45 | C33: 120
B34: 26 | C34: 82

Sheet basic SGD
B1: intercept | C1: 1 | E1: learn | F1: 0.0001 | L1: de/da=x*2(ax+b-y)
B2: slope | C2: 1 | H2: e=(ax+b-y)^2 | K2: de/db=2(ax+b-y)
A3: x | B3: y | C3: intercept | D3: slope | E3: y_pred | F3: err^2 | G3: errb1 | H3: est de/db | I3: erra1 | J3: est de/da | K3: de/db | L3: de/da | M3: new a | N3: new b
A4: 14 | B4: 58 | C4: =C1 -> 1 | D4: =C2 -> 1 | E4: =C4+D4*A4 -> 15 | F4: =(B4-E4)^2 -> 1849 | G4: =(((C4+0.01)+A4*D4)-B4)^2 -> 1848.1401 | H4: =(G4-F4)/0.01 -> -85.99 | I4: =(((D4+0.01)*A4+C4)-B4)^2 -> 1836.9796 | J4: =(I4-F4)/0.01 -> -1202.04 | K4: =2*(E4-B4) -> -86 | L4: =K4*A4 -> -1204 | M4: =D4-L4*$F$1 -> 1.1204 | N4: =C4-K4*$F$1 -> 1.0086
A5: 86 | B5: 202 | C5: =N4 -> 1.0086 | D5: =M4 -> 1.1204 | E5: =C5+D5*A5 -> 97.363 | F5: =(B5-E5)^2 -> 10948.90177 | G5: =(((C5+0.01)+A5*D5)-B5)^2 -> 10946.80913 | H5: =(G5-F5)/0.01 -> -209.264 | I5: =(((D5+0.01)*A5+C5)-B5)^2 -> 10769.66573 | J5: =(I5-F5)/0.01 -> -17923.604 | K5: =2*(E5-B5) -> -209.274 | L5: =K5*A5 -> -17997.564 | M5: =D5-L5*$F$1 -> 2.9201564 | N5: =C5-K5*$F$1 -> 1.0295274
A6: 28 | B6: 86 | C6: =N5 -> 1.0295274 | D6: =M5 -> 2.9201564 | E6: =C6+D6*A6 -> 82.7939066 | F6: =(B6-E6)^2 -> 10.27903489 | G6: =(((C6+0.01)+A6*D6)-B6)^2 -> 10.21501302 | H6: =(G6-F6)/0.01 -> -6.4021868 | I6: =(((D6+0.01)*A6+C6)-B6)^2 -> 8.562022586 | J6: =(I6-F6)/0.01 -> -171.7012304 | K6: -6.4121868 | L6: =K6*A6 -> -179.5412304 | M6: 2.938110523 | N6: 1.030168619
A7: 51 | B7: 132 | C7: =N6 -> 1.030168619 | D7: =M6 -> 2.938110523 | E7: =C7+D7*A7 -> 150.8738053 | F7: 356.2205263 | G7: 356.5981024 | H7: 37.75761059 | I7: 375.7319077 | J7: 1951.13814 | K7: 37.74761059 | L7: 1925.12814 | M7: 2.745597709 | N7: 1.026393858
A8: 28 | B8: 86 | C8: 1.026393858 | D8: 2.745597709 | E8: 77.90312971 | F8: 65.55930848 | G8: 65.39747107 | H8: -16.18374058 | I8: 61.10346112 | J8: -445.5847362 | K8: -16.19374058 | L8: -453.4247362 | M8: 2.790940183 | N8: 1.028013232
A9: 29 | B9: 88 | C9: 1.028013232 | D9: 2.790940183 | E9: 81.96527853 | F9: 36.41786323 | G9: 36.2972688 | H9: -12.05944294 | I9: 33.00182478 | J9: -341.6038453 | K9: -12.06944294 | L9: -350.0138453 | M9: 2.825941567 | N9: 1.029220176
A10: 72 | B10: 174 | C10: 1.029220176 | D10: 2.825941567 | E10: 204.497013 | F10: 930.0678028 | G10: 930.677843 | H10: 61.00402603 | I10: 974.5019015 | J10: 4443.409874 | K10: 60.99402603 | L10: 4391.569874 | M10: 2.38678458 | N10: 1.023120773
A11: 62 | B11: 154 | C11: 1.023120773 | D11: 2.38678458 | E11: 149.0037647 | F11: 24.96236697 | G11: 24.86254226 | H11: -9.982470559 | I11: 19.15143522 | J11: -581.0931747 | K11: -9.992470559 | L11: -619.5331747 | M11: 2.448737897 | N11: 1.02412002
A12: 84 | B12: 198 | C12: 1.02412002 | D12: 2.448737897 | E12: 206.7181034 | F12: 76.00532672 | G12: 76.17978879 | H12: 17.44620678 | I12: 91.35734042 | J12: 1535.20137 | K12: 17.43620678 | L12: 1464.64137 | M12: 2.30227376 | N12: 1.0223764
A13: 15 | B13: 60 | C13: 1.0223764 | D13: 2.30227376 | E13: 35.5564828 | F13: 597.4855329 | G13: 596.9967626 | H13: -48.87703439 | I13: 590.1749777 | J13: -731.0555159 | K13: -48.88703439 | L13: -733.3055159 | M13: 2.375604312 | N13: 1.027265103
A14: 42 | B14: 114 | C14: 1.027265103 | D14: 2.375604312 | E14: 100.8026462 | F14: 174.1701473 | G14: 173.9063002 | H14: -26.38470759 | I14: 163.2607701 | J14: -1090.937719 | K14: -26.39470759 | L14: -1108.577719 | M14: 2.486462084 | N14: 1.029904574
A15: 62 | B15: 154 | C15: =N14 -> 1.029904574 | D15: =M14 -> 2.486462084 | E15: 155.1905538 | F15: 1.417418277 | G15: 1.441329352 | H15: 2.391107538 | I15: 3.27810495 | J15: 186.0686673 | K15: 2.381107538 | L15: 147.6286673 | M15: 2.471699217 | N15: 1.029666463
A16: 47 | B16: 124 | C16: 1.029666463 | D16: 2.471699217 | E16: 117.1995297 | F16: 46.24639678 | G16: 46.11048737 | H16: -13.59094067 | I16: 40.07485467 | J16: -617.1542115 | K16: -13.60094067 | L16: -639.2442115 | M16: 2.535623638 | N16: 1.031026557
A17: 35 | B17: 100 | C17: 1.031026557 | D17: 2.535623638 | E17: 89.77785389 | F17: 104.492271 | G17: 104.2879281 | H17: -20.43429221 | I17: 97.45926873 | J17: -703.3002274 | K17: -20.44429221 | L17: -715.5502274 | M17: 2.607178661 | N17: 1.033070986
A18: 9 | B18: 48 | C18: 1.033070986 | D18: 2.607178661 | E18: 24.49767893 | F18: 552.3590954 | G18: 551.889149 | H18: -46.99464213 | I18: 548.1367777 | J18: -422.2317792 | K18: -47.00464213 | L18: -423.0417792 | M18: 2.649482839 | N18: 1.037771451
A19: 38 | B19: 106 | C19: 1.037771451 | D19: 2.649482839 | E19: 101.7181193 | F19: 18.33450209 | G19: 18.24896448 | H19: -8.553761345 | I19: 15.22467278 | J19: -310.9829311 | K19: -8.563761345 | L19: -325.4229311 | M19: 2.682025132 | N19: 1.038627827
A20: 44 | B20: 118 | C20: 1.038627827 | D20: 2.682025132 | E20: 119.0477336 | F20: 1.097745767 | G20: 1.11880044 | H20: 2.105467267 | I20: 2.213351365 | J20: 111.5605598 | K20: 2.095467267 | L20: 92.20055976 | M20: 2.672805076 | N20: 1.03841828
A21: 99 | B21: 228 | C21: 1.03841828 | D21: 2.672805076 | E21: 265.6461208 | F21: 1417.230412 | G21: 1417.983434 | H21: 75.30224161 | I21: 1492.749831 | J21: 7551.941919 | K21: 75.29224161 | L21: 7453.931919 | M21: 1.927411884 | N21: 1.030889056
A22: 13 | B22: 56 | C22: 1.030889056 | D22: 1.927411884 | E22: 26.08724355 | F22: 894.7729985 | G22: 894.1748434 | H22: -59.8155129 | I22: 887.0125818 | J22: -776.0416677 | K22: -59.8255129 | L22: -777.7316677 | M22: 2.005185051 | N22: 1.036871607
A23: 21 | B23: 72 | C23: 1.036871607 | D23: 2.005185051 | E23: 43.14575768 | F23: 832.5673001 | G23: 831.9903153 | H23: -57.69848465 | I23: 820.4926184 | J23: -1207.468178 | K23: -57.70848465 | L23: -1211.878178 | M23: 2.126372869 | N23: 1.042642456
A24: 28 | B24: 86 | C24: 1.042642456 | D24: 2.126372869 | E24: 60.58108278 | F24: 646.1213528 | G24: 645.6130744 | H24: -50.82783445 | I24: 631.9651591 | J24: -1415.619364 | K24: -50.83783445 | L24: -1423.459364 | M24: 2.268718805 | N24: 1.047726239
A25: 20 | B25: 70 | C25: 1.047726239 | D25: 2.268718805 | E25: 46.42210234 | F25: 555.917258 | G25: 555.4458001 | H25: -47.14579532 | I25: 546.526099 | J25: -939.1159064 | K25: -47.15579532 | L25: -943.1159064 | M25: 2.363030396 | N25: 1.052441819
A26: 8 | B26: 46 | C26: 1.052441819 | D26: 2.363030396 | E26: 19.95668498 | F26: 678.254257 | G26: 677.7334907 | H26: -52.07663003 | I26: 674.0937266 | J26: -416.0530403 | K26: -52.08663003 | L26: -416.6930403 | M26: 2.4046997 | N26: 1.057650482
A27: 64 | B27: 158 | C27: 1.057650482 | D27: 2.4046997 | E27: 154.9584313 | F27: 9.251140373 | G27: 9.190408999 | H27: -6.073137471 | I27: 5.767532392 | J27: -348.3607982 | K27: -6.083137471 | L27: -389.3207982 | M27: 2.44363178 | N27: 1.058258795
A28: 99 | B28: 228 | C28: 1.058258795 | D28: 2.44363178 | E28: 242.977805 | F28: 224.3346417 | G28: 224.6342978 | H28: 29.96560994 | I28: 254.9707956 | J28: 3063.615384 | K28: 29.95560994 | L28: 2965.605384 | M28: 2.147071241 | N28: 1.055263234
A29: 70 | B29: 170 | C29: 1.055263234 | D29: 2.147071241 | E29: 151.3502501 | F29: 347.8131708 | G29: 347.4402758 | H29: -37.28949977 | I29: 322.193521 | J29: -2561.964984 | K29: -37.29949977 | L29: -2610.964984 | M29: 2.40816774 | N29: 1.058993184
A30: 27 | B30: 84 | C30: 1.058993184 | D30: 2.40816774 | E30: 66.07952215 | F30: 321.1435263 | G30: 320.7852167 | H30: -35.8309557 | I30: 311.5393683 | J30: -960.4158038 | K30: -35.8409557 | L30: -967.7058038 | M30: 2.50493832 | N30: 1.06257728
A31: 17 | B31: 64 | C31: 1.06257728 | D31: 2.50493832 | E31: 43.64652872 | F31: 414.2637932 | G31: 413.8568238 | H31: -40.69694256 | I31: 407.372513 | J31: -689.1280236 | K31: -40.70694256 | L31: -692.0180236 | M31: 2.574140122 | N31: 1.066647974
A32: 8 | B32: 46 | C32: 1.066647974 | D32: 2.574140122 | E32: 21.65976895 | F32: 592.4468474 | G32: 591.9601428 | H32: -48.6704621 | I32: 588.5588105 | J32: -388.8036968 | K32: -48.6804621 | L32: -389.4436968 | M32: 2.613084492 | N32: 1.07151602
E33: rmse | F33: =SQRT(SUM(F4:F32)) -> 150.7552115 | K33: =SQRT(SUMSQ(K4:K32)) -> 301.5104231 | L33: =SQRT(SUMSQ(L4:L32)) -> 20791.83106
C36: Paste error here:
C37: rmse

Sheet momentum
B1: b | C1: 1.261077757 | D1: learn | I1: beta | J1: 0.9 | K1: =1-J1 -> 0.1
B2: a | C2: 2.358034791 | D2: 0.0001
A3: x | B3: y | C3: b | D3: a | E3: pred | F3: de/db | G3: de/da | H3: new b | I3: new a | J3: =J33 -> -19.27953129 | K3: =K33 -> 162.8396203
A4: 14 | B4: 58 | C4: =C1 -> 1.261077757 | D4: =C2 -> 2.358034791 | E4: =C4+D4*A4 -> 34.27356483 | F4: =2*(D4*A4+C4-B4) -> -47.45287034 | G4: =F4*A4 -> -664.3401848 | H4: =C4-J4*$D$2 -> 1.263287443 | I4: =D4-K4*$D$2 -> 2.350022627 | J4: =J3*$J$1+$K$1*F4 -> -22.0968652 | K4: =K3*$J$1+$K$1*G4 -> 80.12163984
A5: 86 | B5: 202 | C5: =H4 -> 1.263287443 | D5: =I4 -> 2.350022627 | E5: =C5+D5*A5 -> 203.3652334 | F5: 2.730466726 | G5: 234.8201384 | H5: =C5-J5*$D$2 -> 1.265248857 | I5: =D5-K5*$D$2 -> 2.340463478 | J5: =J4*$J$1+$K$1*F5 -> -19.614132 | K5: =K4*$J$1+$K$1*G5 -> 95.59148969
A6: 28 | B6: 86 | C6: =H5 -> 1.265248857 | D6: =I5 -> 2.340463478 | E6: =C6+D6*A6 -> 66.79822624 | F6: -38.40354752 | G6: -1075.299331 | H6: 1.267398164 | I6: 2.342613237 | J6: -21.49307355 | K6: -21.49759233
A7: 51 | B7: 132 | C7: =H6 -> 1.267398164 | D7: 2.342613237 | E7: =C7+D7*A7 -> 120.7406733 | F7: -22.51865347 | G7: -1148.451327 | H7: 1.269557727 | I7: 2.356032534 | J7: -21.59563155 | K7: -134.1929658
A8: 28 | B8: 86 | C8: 1.269557727 | D8: 2.356032534 | E8: 67.23846867 | F8: -37.52306265 | G8: -1050.645754 | H8: 1.271876564 | I8: 2.378616358 | J8: -23.18837466 | K8: -225.8382447
A9: 29 | B9: 88 | C9: 1.271876564 | D9: 2.378616358 | E9: 70.25175095 | F9: -35.49649809 | G9: -1029.398445 | H9: 1.274318483 | I9: 2.409235785 | J9: -24.419187 | K9: -306.1942647
A10: 72 | B10: 174 | C10: 1.274318483 | D10: 2.409235785 | E10: 174.739295 | F10: 1.47858997 | G10: 106.4584778 | H10: 1.276501424 | I10: 2.435728684 | J10: -21.8294093 | K10: -264.9289904
A11: 62 | B11: 154 | C11: 1.276501424 | D11: 2.435728684 | E11: 152.2916798 | F11: -3.416640362 | G11: -211.8317024 | H11: 1.278500237 | I11: 2.46169061 | J11: -19.98813241 | K11: -259.6192616
A12: 84 | B12: 198 | C12: 1.278500237 | D12: 2.46169061 | E12: 208.0605115 | F12: 20.12102295 | G12: 1690.165927 | H12: 1.280097959 | I12: 2.468154684 | J12: -15.97721687 | K12: -64.6407427
A13: 15 | B13: 60 | C13: 1.280097959 | D13: 2.468154684 | E13: 38.30241822 | F13: -43.39516356 | G13: -650.9274533 | H13: 1.28196986 | I13: 2.480481626 | J13: -18.71901154 | K13: -123.2694138
A14: 42 | B14: 114 | C14: 1.28196986 | D14: 2.480481626 | E14: 105.4621981 | F14: -17.07560373 | G14: -717.1753566 | H14: 1.283825327 | I14: 2.498747626 | J14: -18.55467076 | K14: -182.6600081
A15: 62 | B15: 154 | C15: 1.283825327 | D15: =I14 -> 2.498747626 | E15: 156.2061782 | F15: 4.412356328 | G15: 273.5660924 | H15: 1.285451124 | I15: 2.512451366 | J15: -16.25796805 | K15: -137.037398
A16: 47 | B16: 124 | C16: 1.285451124 | D16: 2.512451366 | E16: 119.3706653 | F16: -9.258669329 | G16: -435.1574585 | H16: 1.287006928 | I16: 2.529136307 | J16: -15.55803818 | K16: -166.8494041
A17: 35 | B17: 100 | C17: 1.287006928 | D17: 2.529136307 | E17: 89.80677766 | F17: -20.38644468 | G17: -713.5255639 | H17: 1.288611016 | I17: 2.551288009 | J17: -16.04087883 | K17: -221.51702
A18: 9 | B18: 48 | C18: 1.288611016 | D18: 2.551288009 | E18: 24.25020309 | F18: -47.49959381 | G18: -427.4963443 | H18: 1.290529691 | I18: 2.575499504 | J18: -19.18675033 | K18: -242.1149525
A19: 38 | B19: 106 | C19: 1.290529691 | D19: 2.575499504 | E19: 99.15951084 | F19: -13.68097833 | G19: -519.8771764 | H19: 1.292393308 | I19: 2.602488621 | J19: -18.63617313 | K19: -269.8911749
A20: 44 | B20: 118 | C20: 1.292393308 | D20: 2.602488621 | E20: 115.8018926 | F20: -4.396214706 | G20: -193.433447 | H20: 1.294114526 | I20: 2.628713162 | J20: -17.21217729 | K20: -262.2454021
A21: 99 | B21: 228 | C21: 1.294114526 | D21: 2.628713162 | E21: 261.5367175 | F21: 67.07343504 | G21: 6640.270069 | H21: 1.294992887 | I21: 2.585912547 | J21: =J20*$J$1+$K$1*F21 -> -8.783616053 | K21: 428.006145
A22: 13 | B22: 56 | C22: 1.294992887 | D22: 2.585912547 | E22: 34.911856 | F22: -42.176288 | G22: -548.291744 | H22: 1.296205176 | I22: 2.552874911 | J22: -12.12288325 | K22: 330.3763561
A23: 21 | B23: 72 | C23: 1.296205176 | D23: 2.552874911 | E23: 54.90657832 | F23: -34.18684337 | G23: -717.9237107 | H23: 1.297638104 | I23: 2.530320276 | J23: -14.32927926 | K23: 225.5463494
A24: 28 | B24: 86 | C24: 1.297638104 | D24: 2.530320276 | E24: 72.14660585 | F24: -27.70678831 | G24: -775.7900726 | H24: 1.299204807 | I24: 2.517779006 | J24: -15.66703016 | K24: 125.4127072
A25: 20 | B25: 70 | C25: 1.299204807 | D25: 2.517779006 | E25: 51.65478492 | F25: -36.69043016 | G25: -733.8086031 | H25: 1.300981744 | I25: 2.513829948 | J25: -17.76937016 | K25: 39.49057619
A26: 8 | B26: 46 | C26: 1.300981744 | D26: 2.513829948 | E26: 21.41162133 | F26: -49.17675734 | G26: -393.4140587 | H26: 1.303072755 | I26: 2.514209937 | J26: -20.91010888 | K26: -3.799887304
A27: 64 | B27: 158 | C27: 1.303072755 | D27: 2.514209937 | E27: 162.2125087 | F27: 8.42501743 | G27: 539.2011155 | H27: 1.304870414 | I27: 2.509159916 | J27: -17.97659625 | K27: 50.50021298
A28: 99 | B28: 228 | C28: 1.304870414 | D28: 2.509159916 | E28: 249.7117021 | F28: 43.42340411 | G28: 4298.917007 | H28: 1.306054074 | I28: 2.461625726 | J28: -11.83659621 | K28: 475.3418924
A29: 70 | B29: 170 | C29: 1.306054074 | D29: 2.461625726 | E29: 173.6198549 | F29: 7.239709836 | G29: 506.7796885 | H29: 1.30704697 | I29: 2.413777159 | J29: -9.928965609 | K29: 478.485672
A30: 27 | B30: 84 | C30: 1.30704697 | D30: 2.413777159 | E30: 66.47903027 | F30: -35.04193947 | G30: -946.1323656 | H30: 1.308290997 | I30: 2.380174772 | J30: -12.44026299 | K30: 336.0238683
A31: 17 | B31: 64 | C31: 1.308290997 | D31: 2.380174772 | E31: 41.77126213 | F31: -44.45747575 | G31: -755.7770877 | H31: 1.309855195 | I31: 2.357490395 | J31: -15.64198427 | K31: 226.8437727
A32: 8 | B32: 46 | C32: 1.309855195 | D32: 2.357490395 | E32: 20.16977836 | F32: -51.66044329 | G32: -413.2835463 | H32: 1.311779578 | I32: 2.341207291 | J32: -19.24383017 | K32: 162.8310408
J33: -19.27953129 | K33: 162.8396203

Sheet adagrad
B1: b | C1: 1 | D1: learn | F1: 28.09271023 | G1: 1918.71077
B2: a | C2: 1 | D2: 0.001 | F2: =$D$2/F1 -> 3.559642312e-05 | G2: =$D$2/G1 -> 5.211832945e-07
A3: x | B3: y | C3: b | D3: a | E3: pred | F3: de/db | G3: de/da | H3: new b | I3: new a
A4: 14 | B4: 58 | C4: =C1 -> 1 | D4: =C2 -> 1 | E4: =C4+D4*A4 -> 15 | F4: =2*(D4*A4+C4-B4) -> -86 | G4: =F4*A4 -> -1204 | H4: =C4-F4*F$2 -> 1.003061292 | I4: =D4-G4*G$2 -> 1.000627505
A5: 86 | B5: 202 | C5: =H4 -> 1.003061292 | D5: =I4 -> 1.000627505 | E5: =C5+D5*A5 -> 87.0570267 | F5: -229.8859466 | G5: -19770.19141 | H5: 1.01124441 | I5: 1.010931398
A6: 28 | B6: 86 | C6: =H5 -> 1.01124441 | D6: =I5 -> 1.010931398 | E6: =C6+D6*A6 -> 29.31732356 | F6: -113.3653529 | G6: -3174.229881 | H6: =C6-F6*F$2 -> 1.015279811 | I6: 1.012585754
A7: 51 | B7: 132 | C7: =H6 -> 1.015279811 | D7: =I6 -> 1.012585754 | E7: =C7+D7*A7 -> 52.65715325 | F7: -158.6856935 | G7: -8092.970368 | H7: 1.020928454 | I7: 1.016803675
A8: 28 | B8: 86 | C8: 1.020928454 | D8: 1.016803675 | E8: 29.49143135 | F8: -113.0171373 | G8: -3164.479845 | H8: 1.02495146 | I8: 1.018452949
A9: 29 | B9: 88 | C9: 1.02495146 | D9: 1.018452949 | E9: 30.56008697 | F9: -114.8798261 | G9: -3331.514956 | H9: 1.029040771 | I9: 1.020189279
A10: 72 | B10: 174 | C10: 1.029040771 | D10: 1.020189279 | E10: 74.48266884 | F10: -199.0346623 | G10: -14330.49569 | H10: 1.036125693 | I10: 1.027658094
A11: 62 | B11: 154 | C11: 1.036125693 | D11: 1.027658094 | E11: 64.7509275 | F11: -178.498145 | G11: -11066.88499 | H11: 1.042479588 | I11: 1.033425969
A12: 84 | B12: 198 | C12: 1.042479588 | D12: 1.033425969 | E12: 87.850261 | F12: -220.299478 | G12: -18505.15615 | H12: 1.050321462 | I12: 1.043070547
A13: 15 | B13: 60 | C13: 1.050321462 | D13: 1.043070547 | E13: 16.69637967 | F13: -86.60724065 | G13: -1299.10861 | H13: 1.05340437 | I13: 1.043747621
A14: 42 | B14: 114 | C14: 1.05340437 | D14: 1.043747621 | E14: 44.89080446 | F14: -138.2183911 | G14: -5805.172425 | H14: 1.05832445 | I14: 1.04677318
A15: 62 | B15: 154 | C15: 1.05832445 | D15: =I14 -> 1.04677318 | E15: 65.95826161 | F15: -176.0834768 | G15: -10917.17556 | H15: 1.064592392 | I15: 1.05246303
A16: 47 | B16: 124 | C16: 1.064592392 | D16: 1.05246303 | E16: 50.53035478 | F16: -146.9392904 | G16: -6906.14665 | H16: 1.069822905 | I16: 1.056062398
A17: 35 | B17: 100 | C17: 1.069822905 | D17: 1.056062398 | E17: 38.03200683 | F17: -123.9359863 | G17: -4337.759522 | H17: 1.074234583 | I17: 1.058323166
A18: 9 | B18: 48 | C18: 1.074234583 | D18: 1.058323166 | E18: 10.59914307 | F18: -74.80171385 | G18: -673.2154247 | H18: 1.076897256 | I18: 1.058674034
A19: 38 | B19: 106 | C19: 1.076897256 | D19: 1.058674034 | E19: 41.30651056 | F19: -129.3869789 | G19: -4916.705197 | H19: 1.08150297 | I19: 1.061236539
A20: 44 | B20: 118 | C20: 1.08150297 | D20: 1.061236539 | E20: 47.77591068 | F20: -140.4481786 | G20: -6179.71986 | H20: 1.086502423 | I20: 1.064457306
A21: 99 | B21: 228 | C21: 1.086502423 | D21: 1.064457306 | E21: 106.4677757 | F21: -243.0644486 | G21: -24063.38041 | H21: 1.095154648 | I21: 1.076998738
A22: 13 | B22: 56 | C22: 1.095154648 | D22: 1.076998738 | E22: 15.09613824 | F22: -81.80772353 | G22: -1063.500406 | H22: 1.09806671 | I22: 1.077553016
A23: 21 | B23: 72 | C23: 1.09806671 | D23: 1.077553016 | E23: 23.72668005 | F23: -96.5466399 | G23: -2027.479438 | H23: 1.101503425 | I23: 1.078609705
A24: 28 | B24: 86 | C24: 1.101503425 | D24: 1.078609705 | E24: 31.30257515 | F24: -109.3948497 | G24: -3063.055791 | H24: 1.105397491 | I24: 1.080206118
A25: 20 | B25: 70 | C25: 1.105397491 | D25: 1.080206118 | E25: 22.70951985 | F25: -94.58096029 | G25: -1891.619206 | H25: 1.108764234 | I25: 1.081191998
A26: 8 | B26: 46 | C26: 1.108764234 | D26: 1.081191998 | E26: 9.758300222 | F26: -72.48339956 | G26: -579.8671965 | H26: 1.111344384 | I26: 1.081494216
A27: 64 | B27: 158 | C27: 1.111344384 | D27: 1.081494216 | E27: 70.32697418 | F27: -175.3460516 | G27: -11222.14731 | H27: 1.117586076 | I27: 1.087343011
A28: 99 | B28: 228 | C28: 1.117586076 | D28: 1.087343011 | E28: 108.7645442 | F28: -238.4709116 | G28: -23608.62025 | H28: 1.126074788 | I28: 1.09964743
A29: 70 | B29: 170 | C29: 1.126074788 | D29: 1.09964743 | E29: 78.10139487 | F29: -183.7972103 | G29: -12865.80472 | H29: 1.132617311 | I29: 1.106352872
A30: 27 | B30: 84 | C30: 1.132617311 | D30: 1.106352872 | E30: 31.00414486 | F30: -105.9917103 | G30: -2861.776178 | H30: 1.136390237 | I30: 1.107844382
A31: 17 | B31: 64 | C31: 1.136390237 | D31: 1.107844382 | E31: 19.96974473 | F31: -88.06051053 | G31: -1497.028679 | H31: 1.139524876 | I31: 1.108624608
A32: 8 | B32: 46 | C32: 1.139524876 | D32: 1.108624608 | E32: 10.00852174 | F32: -71.98295651 | G32: -575.8636521 | H32: 1.142087212 | I32: 1.108924739
F33: =SQRT(SUMSQ(F4:F32))/COUNT(F4:F32) -> 27.31996242 | G33: =SQRT(SUMSQ(G4:G32))/COUNT(G4:G32) -> 1857.066741

Sheet rmsprop
B1: b | C1: 1 | D1: learn | J1: 0.9 | K1: =1-J1 -> 0.1
B2: a | C2: 1 | D2: 0.02
A3: x | B3: y | C3: b | D3: a | E3: pred | F3: de/db | G3: de/da | H3: new b | I3: new a | J3: =J33 -> 9309.631475 | K3: =K33 -> 38847505.05
A4: 14 | B4: 58 | C4: =C1 -> 1 | D4: =C2 -> 1 | E4: =C4+D4*A4 -> 15 | F4: =2*(D4*A4+C4-B4) -> -86 | G4: =F4*A4 -> -1204 | H4: =C4-F4*$D$2/SQRT(J3) -> 1.017826341 | I4: =D4-G4*$D$2/SQRT(K3) -> 1.003863447 | J4: =J3*$J$1+$K$1*F4^2 -> 9118.268327 | K4: =K3*$J$1+$K$1*G4^2 -> 35107716.14
A5: 86 | B5: 202 | C5: =H4 -> 1.017826341 | D5: =I4 -> 1.003863447 | E5: =C5+D5*A5 -> 87.35008275 | F5: -229.2998345 | G5: -19719.78577 | H5: 1.065852466 | I5: 1.070426142 | J5: 13464.2829 | K5: 70483939.6
A6: 28 | B6: 86 | C6: =H5 -> 1.065852466 | D6: =I5 -> 1.070426142 | E6: =C6+D6*A6 -> 31.03778444 | F6: -109.9244311 | G6: -3077.884071 | H6: 1.084799124 | I6: 1.07775839 | J6: =J5*$J$1+$K$1*F6^2 -> 13326.19267 | K6: =K5*$J$1+$K$1*G6^2 -> 64382882.68
A7: 51 | B7: 132 | C7: =H6 -> 1.084799124 | D7: 1.07775839 | E7: =C7+D7*A7 -> 56.05047703 | F7: -151.8990459 | G7: -7746.851343 | H7: 1.111115858 | I7: 1.097067845 | J7: 14300.90542 | K7: 63945964.98
A8: 28 | B8: 86 | C8: 1.111115858 | D8: 1.097067845 | E8: 31.82901552 | F8: =2*(D8*A8+C8-B8) -> -108.341969 | G8: -3033.575131 | H8: 1.129235306 | I8: 1.104654986 | J8: 14044.6131 | K8: 58471626.29
A9: 29 | B9: 88 | C9: 1.129235306 | D9: 1.104654986 | E9: 33.16422991 | F9: -109.6715402 | G9: -3180.474665 | H9: 1.147743713 | I9: 1.112973569 | J9: 13842.93646 | K9: 53636005.57
A10: 72 | B10: 174 | C10: 1.147743713 | D10: 1.112973569 | E10: 81.2818407 | F10: -185.4363186 | G10: -13351.41494 | H10: 1.179265489 | I10: 1.149434611 | J10: 15897.30564 | K10: 66098433.1
A11: 62 | B11: 154 | C11: 1.179265489 | D11: 1.149434611 | E11: 72.44421138 | F11: -163.1115772 | G11: -10112.91779 | H11: 1.205138861 | I11: 1.174312349 | J11: 16968.11374 | K11: 69715700.41
A12: 84 | B12: 198 | C12: 1.205138861 | D12: 1.174312349 | E12: 99.8473762 | F12: -196.3052476 | G12: -16489.6408 | H12: 1.235278991 | I12: 1.213810421 | J12: 19124.87739 | K12: 89934955.74
A13: 15 | B13: 60 | C13: 1.235278991 | D13: 1.213810421 | E13: 19.4424353 | F13: -81.11512939 | G13: -1216.726941 | H13: 1.247009923 | I13: 1.216376434 | J13: 17870.35607 | K13: 81089502.61
A14: 42 | B14: 114 | C14: 1.247009923 | D14: 1.216376434 | E14: 52.33482015 | F14: -123.3303597 | G14: -5179.875108 | H14: 1.265461496 | I14: 1.227880913 | J14: 17604.35823 | K14: 75663662.96
A15: 62 | B15: 154 | C15: 1.265461496 | D15: =I14 -> 1.227880913 | E15: 77.39407811 | F15: -153.2118438 | G15: -9499.134314 | H15: 1.288556191 | I15: 1.249721804 | J15: 18191.30931 | K15: 77120651.94
A16: 47 | B16: 124 | C16: 1.288556191 | D16: 1.249721804 | E16: 60.02548097 | F16: -127.9490381 | G16: -6013.604789 | H16: 1.307529149 | I16: 1.263417356 | J16: 18009.27402 | K16: 73024931
A17: 35 | B17: 100 | C17: 1.307529149 | D17: 1.263417356 | E17: 45.52713659 | F17: -108.9457268 | G17: -3813.100439 | H17: 1.323765637 | I17: 1.272341625 | J17: 17395.26375 | K17: 67176411.39
A18: 9 | B18: 48 | C18: 1.323765637 | D18: 1.272341625 | E18: 12.77484026 | F18: -70.45031948 | G18: -634.0528753 | H18: 1.334448741 | I18: 1.273888827 | J18: 16152.06213 | K18: 60498972.56
A19: 38 | B19: 106 | C19: 1.334448741 | D19: 1.273888827 | E19: 49.74222416 | F19: -112.5155517 | G19: -4275.590964 | H19: 1.352155071 | I19: 1.284882736 | J19: 15802.83085 | K19: 56277143.11
A20: 44 | B20: 118 | C20: 1.352155071 | D20: 1.284882736 | E20: 57.88699546 | F20: -120.2260091 | G20: -5289.944399 | H20: 1.371282693 | I20: 1.298985852 | J20: 15667.97709 | K20: 53447779.98
A21: 99 | B21: 228 | C21: 1.371282693 | D21: 1.298985852 | E21: 129.9708821 | F21: -196.0582359 | G21: -19409.76535 | H21: 1.402608958 | I21: 1.352084743 | J21: 17945.06257 | K21: 85776901.08
A22: 13 | B22: 56 | C22: 1.402608958 | D22: 1.352084743 | E22: 18.97971061 | F22: -74.04057878 | G22: -962.5275241 | H22: 1.413663158 | I22: 1.354163281 | J22: 16698.75704 | K22: 77291856.89
A23: 21 | B23: 72 | C23: 1.413663158 | D23: 1.354163281 | E23: 29.85109205 | F23: -84.2978159 | G23: -1770.254134 | H23: 1.426709966 | I23: 1.358190439 | J23: 15739.49352 | K23: 69876051.17
A24: 28 | B24: 86 | C24: 1.426709966 | D24: 1.358190439 | E24: 39.45604227 | F24: -93.08791547 | G24: -2606.461633 | H24: 1.441549761 | I24: 1.364426598 | J24: 15032.08016 | K24: 63567810.28
A25: 20 | B25: 70 | C25: 1.441549761 | D25: 1.364426598 | E25: 28.73008172 | F25: -82.53983656 | G25: -1650.796731 | H25: 1.45501407 | I25: 1.368567595 | J25: 14210.15461 | K25: 57483542.24
A26: 8 | B26: 46 | C26: 1.45501407 | D26: 1.368567595 | E26: 12.40355483 | F26: -67.19289033 | G26: -537.5431227 | H26: 1.466287444 | I26: 1.36998558 | J26: 13240.6276 | K26: 51764083.27
A27: 64 | B27: 158 | C27: 1.466287444 | D27: 1.36998558 | E27: 89.14536458 | F27: -137.7092708 | G27: -8813.393334 | H27: 1.490222745 | I27: 1.394485174 | J27: 13812.94917 | K27: 54355265.15
A28: 99 | B28: 228 | C28: 1.490222745 | D28: 1.394485174 | E28: 139.544255 | F28: -176.9114901 | G28: -17514.23752 | H28: 1.520328036 | I28: 1.441996858 | J28: 15561.42178 | K28: 79594590.21
A29: 70 | B29: 170 | C29: 1.520328036 | D29: 1.441996858 | E29: 102.4601081 | F29: -135.0797838 | G29: -9455.584869 | H29: 1.541984907 | I29: 1.463193966 | J29: 15829.9344 | K29: 80575939.71
A30: 27 | B30: 84 | C30: 1.541984907 | D30: 1.463193966 | E30: 41.04822199 | F30: -85.90355602 | G30: -2319.396013 | H30: 1.555640218 | I30: 1.468361725 | J30: 14984.88306 | K30: 73056305.53
A31: 17 | B31: 64 | C31: 1.555640218 | D31: 1.468361725 | E31: 26.51778953 | F31: -74.96442093 | G31: -1274.395156 | H31: 1.567888029 | I31: 1.471343708 | J31: 14048.36119 | K31: 65913083.28
A32: 8 | B32: 46 | C32: 1.567888029 | D32: 1.471343708 | E32: 13.33863769 | F32: -65.32272461 | G32: -522.5817969 | H32: 1.578910564 | I32: 1.472631064 | J32: 13070.23091 | K32: 59349084.12
J33: 9309.631475 | K33: 38847505.05

Sheet adam
B1: b | C1: 1 | D1: learn | I1: beta | J1: 0.7 | K1: =1-J1 -> 0.3 | L1: 0.9 | M1: =1-L1 -> 0.1
B2: a | C2: 1 | D2: 1
A3: x | B3: y | C3: b | D3: a | E3: pred | F3: de/db | G3: de/da | H3: new b | I3: new a | J3: =J33 -> -19.37050943 | K3: =K33 -> -636.9620431 | L3: =L33 -> 5489.999378 | M3: =M33 -> 27555653.26
A4: 14 | B4: 58 | C4: =C1 -> 1 | D4: =C2 -> 1 | E4: =C4+D4*A4 -> 15 | F4: =2*(D4*A4+C4-B4) -> -86 | G4: =F4*A4 -> -1204 | H4: =C4-J4*$D$2/SQRT(L4) -> 1.522216882 | I4: =D4-K4*$D$2/SQRT(M4) -> 1.161592375 | J4: =J3*$J$1+$K$1*F4 -> -39.3593566 | K4: =K3*$J$1+$K$1*G4 -> -807.0734302 | L4: =L3*$L$1+$M$1*F4^2 -> 5680.599441 | M4: =M3*$L$1+$M$1*G4^2 -> 24945049.53
A5: 86 | B5: 202 | C5: =H4 -> 1.522216882 | D5: =I4 -> 1.161592375 | E5: =C5+D5*A5 -> 101.4191612 | F5: -201.1616777 | G5: -17299.90428 | H5: =C5-J5*$D$2/SQRT(L5) -> 2.440680062 | I5: =D5-K5*$D$2/SQRT(M5) -> 1.956762413 | J5: =J4*$J$1+$K$1*F5 -> -87.90005293 | K5: =K4*$J$1+$K$1*G5 -> -5754.922686 | L5: 9159.141554 | M5: 52379213.4
A6: 28 | B6: 86 | C6: =H5 -> 2.440680062 | D6: =I5 -> 1.956762413 | E6: =C6+D6*A6 -> 57.23002763 | F6: -57.53994474 | G6: -1611.118453 | H6: 3.291588045 | I6: 2.612084687 | J6: -78.79202047 | K6: -4511.781416 | L6: 8574.311922 | M6: 47400862.32
A7: 51 | B7: 132 | C7: =H6 -> 3.291588045 | D7: 2.612084687 | E7: =C7+D7*A7 -> 136.5079071 | F7: 9.015814205 | G7: 459.8065245 | H7: 3.888339185 | I7: 3.074389954 | J7: -52.44967007 | K7: -3020.305034 | L7: 7725.009221 | M7: 42681918.29
A8: 28 | B8: 86 | C8: 3.888339185 | D8: 3.074389954 | E8: 89.97125791 | F8: 7.94251582 | G8: 222.390443 | H8: 4.299897697 | I8: 3.40472296 | J8: -34.3320143 | K8: -2047.496391 | L8: 6958.816654 | M8: 38418672.22
A9: 29 | B9: 88 | C9: 4.299897697 | D9: 3.40472296 | E9: 103.0368635 | F9: 30.07372709 | G9: 872.1380857 | H9: 4.488213511 | I9: 3.603749969 | J9: -15.01029188 | K9: -1171.606048 | L9: 6353.377895 | M9: 34652867.48
A10: 72 | B10: 174 | C10: 4.488213511 | D10: 3.603749969 | E10: 263.9582113 | F10: 179.9164226 | G10: 12953.98243 | H10: 4.028874519 | I10: 3.1610539 | J10: 43.46772245 | K10: 3066.070494 | L10: 8955.032017 | M10: 47968146.8
A11: 62 | B11: 154 | C11: 4.028874519 | D11: 3.1610539 | E11: 200.0142163 | F11: 92.02843264 | G11: 5705.762824 | H11: 3.413917699 | I11: 2.594847333 | J11: 58.03593551 | K11: 3857.978193 | L11: 8906.452057 | M11: 46426905.06
A12: 84 | B12: 198 | C12: 3.413917699 | D12: 2.594847333 | E12: 221.3810937 | F12: 46.76218742 | G12: 3928.023743 | H12: 2.811632155 | I12: 2.005544134 | J12: 54.65381108 | K12: 3878.991858 | L12: 8234.477068 | M12: 43327151.61
A13: 15 | B13: 60 | C13: 2.811632155 | D13: 2.005544134 | E13: 32.89479417 | F13: -54.21041166 | G13: -813.1561748 | H13: 2.561060877 | I13: 1.610118717 | J13: 21.99454426 | K13: 2471.347448 | L13: 7704.906235 | M13: 39060558.74
A14: 42 | B14: 114 | C14: 2.561060877 | D14: 1.610118717 | E14: 70.18604699 | F14: -87.62790601 | G14: -3680.372053 | H14: 2.685170533 | I14: 1.506543126 | J14: -10.89219082 | K14: 625.831598 | L14: 7702.280602 | M14: 36509016.71
A15: 62 | B15: 154 | C15: 2.685170533 | D15: =I14 -> 1.506543126 | E15: 96.09084437 | F15: -115.8183113 | G15: -7180.735298 | H15: 3.150987885 | I15: 1.784884774 | J15: -42.37002695 | K15: -1716.138471 | L15: 8273.440664 | M15: 38014410.98
A16: 47 | B16: 124 | C16: 3.150987885 | D16: 1.784884774 | E16: 87.04057228 | F16: -73.91885544 | G16: -3474.186206 | H16: 3.730789154 | I16: 2.161859486 | J16: -51.8346755 | K16: -2243.552791 | L16: 7992.496317 | M16: 35419966.86
A17: 35 | B17: 100 | C17: 3.730789154 | D17: 2.161859486 | E17: 79.39587117 | F17: -41.20825767 | G17: -1442.289018 | H17: 4.297712968 | I17: 2.515499077 | J17: -48.64675015 | K17: -2003.173659 | L17: 7363.058735 | M17: 32085989.94
A18: 9 | B18: 48 | C18: 4.297712968 | D18: 2.515499077 | E18: 26.93720466 | F18: -42.12559068 | G18: -379.1303161 | H18: 4.863742096 | I18: 2.797532705 | J18: -46.69040231 | K18: -1515.960656 | L18: 6804.209401 | M18: 28891764.92
A19: 38 | B19: 106 | C19: 4.863742096 | D19: 2.797532705 | E19: 111.1699849 | F19: 10.33996975 | G19: 392.9188506 | H19: 5.241425797 | I19: 2.982464329 | J19: -29.58129069 | K19: -943.2968043 | L19: 6134.479958 | M19: 26018026.95
A20: 44 | B20: 118 | C20: 5.241425797 | D20: 2.982464329 | E20: 136.4698563 | F20: 36.93971253 | G20: 1625.347351 | H20: 5.369390008 | I20: 3.017954392 | J20: -9.624989725 | K20: -172.7035577 | L20: 5657.486198 | M20: 23680399.66
A21: 99 | B21: 228 | C21: 5.369390008 | D21: 3.017954392 | E21: 304.1468748 | F21: 152.2937496 | G21: 15077.08121 | H21: 4.916936593 | I21: 2.354626035 | J21: 38.95063207 | K21: 4402.231872 | L21: 7411.076195 | M21: 44044197.47
A22: 13 | B22: 56 | C22: 4.916936593 | D22: 2.354626035 | E22: 35.52707505 | F22: -40.9458499 | G22: -532.2960486 | H22: 4.735757492 | I22: 1.890708653 | J22: 14.98168748 | K22: 2921.873496 | L22: 6837.624838 | M22: 39668111.63
A23: 21 | B23: 72 | C23: 4.735757492 | D23: 1.890708653 | E23: 44.4406392 | F23: -55.11872161 | G23: -1157.493154 | H23: 4.811024582 | I23: 1.607048371 | J23: -6.048435247 | K23: 1698.063501 | L23: 6457.669701 | M23: 35835279.51
A24: 28 | B24: 86 | C24: 4.811024582 | D24: 1.607048371 | E24: 49.80837898 | F24: -72.38324204 | G24: -2026.730777 | H24: 5.137023835 | I24: 1.505453665 | J24: -25.94887728 | K24: 580.6252176 | L24: 6335.836104 | M24: 32662515.32
A25: 20 | B25: 70 | C25: 5.137023835 | D25: 1.505453665 | E25: 35.24609713 | F25: -69.50780574 | G25: -1390.156115 | H25: 5.633119607 | I25: 1.507404017 | J25: -39.01655582 | K25: -10.6091821 | L25: 6185.385999 | M25: 29589517.19
A26: 8 | B26: 46 | C26: 5.633119607 | D26: 1.507404017 | E26: 17.69235174 | F26: -56.61529652 | G26: -452.9223722 | H26: 6.210424646 | I26: 1.535162664 | J26: -44.29617803 | K26: -143.3031391 | L26: 5887.376579 | M26: 26651079.34
A27: 64 | B27: 158 | C27: 6.210424646 | D27: 1.535162664 | E27: 104.4608351 | F27: -107.0783297 | G27: -6853.013101 | H27: 6.996787017 | I27: 1.937773002 | J27: -63.13082353 | K27: -2156.216128 | L27: 6445.215791 | M27: 28682350.26
A28: 99 | B28: 228 | C28: 6.996787017 | D28: 1.937773002 | E28: 198.8363143 | F28: -58.32737149 | G28: -5774.409778 | H28: 7.784008937 | I28: 2.538201493 | J28: -61.68978792 | K28: -3241.674223 | L28: 6140.902438 | M28: 29148496.07
A29: 70 | B29: 170 | C29: 7.784008937 | D29: 2.538201493 | E29: 185.4581135 | F29: 30.9162269 | G29: 2164.135883 | H29: 8.236220167 | I29: 2.851692231 | J29: -33.90798347 | K29: -1619.931191 | L29: 5622.393503 | M29: 26701994.87
A30: 27 | B30: 84 | C30: 8.236220167 | D30: 2.851692231 | E30: 85.23191039 | F30: 2.463820785 | G30: 66.52316121 | H30: 8.559480733 | I30: 3.078932915 | J30: -22.9964422 | K30: -1113.994885 | L30: 5060.761194 | M30: 24032237.92
A31: 17 | B31: 64 | C31: 8.559480733 | D31: 3.078932915 | E31: 60.9013403 | F31: -6.19731941 | G31: -105.35443 | H31: 8.825439586 | I31: 3.253397375 | J31: -17.95670536 | K31: -811.4027487 | L31: 4558.525751 | M31: 21630124.08
A32: 8 | B32: 46 | C32: 8.825439586 | D32: 3.253397375 | E32: 34.85261858 | F32: -22.29476283 | G32: -178.3581026 | H32: 9.124297983 | I32: 3.394244327 | J32: -19.2581226 | K32: -621.4893549 | L32: 4152.378821 | M32: 19470292.83
J33: -19.37050943 | K33: -636.9620431 | L33: 5489.999378 | M33: 27555653.26

Sheet eve
B1: b | C1: 1 | D1: learn | J1: beta | K1: 0.7 | L1: =1-K1 -> 0.3 | M1: 0.9 | N1: =1-M1 -> 0.1
B2: a | C2: 1 | D2: 1
A3: x | B3: y | C3: b | D3: a | E3: pred | F3: err^2 | G3: de/db | H3: de/da | I3: new b | J3: new a | K3: =K33 -> 4.223800054 | L3: =L33 -> -15.96666111 | M3: =M33 -> 672.901089 | N3: =N33 -> 2666772.931
A4: 14 | B4: 58 | C4: =C1 -> 1 | D4: =C2 -> 1 | E4: =C4+D4*A4 -> 15 | F4: =(E4-B4)^2 -> 1849 | G4: =2*(D4*A4+C4-B4) -> -86 | H4: =G4*A4 -> -1204 | I4: =C4-K4*$D$2/SQRT(M4)/$F$38 -> 1.622822655 | J4: =D4-L4*$D$2/SQRT(N4)/$F$38 -> 1.233417643 | K4: =K3*$K$1+$L$1*G4 -> -22.84333996 | L4: =L3*$K$1+$L$1*H4 -> -372.3766628 | M4: =M3*$M$1+$N$1*G4^2 -> 1345.21098 | N4: 2545057.238
A5: 86 | B5: 202 | C5: =I4 -> 1.622822655 | D5: =J4 -> 1.233417643 | E5: =C5+D5*A5 -> 107.6967399 | F5: =(E5-B5)^2 -> 8893.104863 | G5: -188.6065202 | H5: -16220.16074 | I5: =C5-K5*$D$2/SQRT(M5)/$F$38 -> 2.673830198 | J5: =D5-L5*$D$2/SQRT(N5)/$F$38 -> 2.192059871 | K5: =K4*$K$1+$L$1*G5 -> -72.57229403 | L5: -5126.711884 | M5: 4767.931827 | N5: 28599912.94
A6: 28 | B6: 86 | C6: =I5 -> 2.673830198 | D6: =J5 -> 2.192059871 | E6: =C6+D6*A6 -> 64.05150657 | F6: 481.7363637 | G6: -43.89698685 | H6: -1229.115632 | I6: 3.62915181 | J6: 2.969808418 | K6: -63.96970187 | L6: -3957.433009 | M6: 4483.83319 | N6: 25890994.17
A7: 51 | B7: 132 | C7: =I6 -> 3.62915181 | D7: 2.969808418 | E7: =C7+D7*A7 -> 155.0893811 | F7: 533.1195198 | G7: 46.17876221 | H7: 2355.116873 | I7: 4.103594848 | J7: 3.392317451 | K7: -30.92516265 | L7: -2063.668044 | M7: 4248.697679 | N7: 23856552.3
A8: 28 | B8: 86 | C8: 4.103594848 | D8: 3.392317451 | E8: 99.08848348 | F8: 171.3083998 | G8: 26.17696696 | H8: 732.9550748 | I8: 4.324700934 | J8: 3.65628788 | K8: -13.79452377 | L8: -1224.681109 | M8: 3892.351271 | N8: 21524619.39
A9: 29 | B9: 88 | C9: 4.324700934 | D9: 3.65628788 | E9: 110.3570495 | F9: 499.8376605 | G9: 44.71409892 | H9: 1296.708869 | I9: 4.262944217 | J9: 3.762219407 | K9: 3.758063038 | L9: -468.2641154 | M9: 3703.051208 | N9: 19540302.84
A10: 72 | B10: 174 | C10: 4.262944217 | D10: 3.762219407 | E10: 275.1427415 | F10: 10229.85416 | G10: 202.2854831 | H10: 14564.55478 | I10: 3.528132021 | J10: 3.113373379 | K10: 63.31628904 | L10: 4041.581553 | M10: 7424.687753 | N10: 38798898.15
A11: 62 | B11: 154 | C11: 3.528132021 | D11: 3.113373379 | E11: 196.5572815 | F11: 1811.12221 | G11: 85.11456302 | H11: 5277.102907 | I11: 2.716440785 | J11: 2.394807777 | K11: 69.85577124 | L11: 4412.23796 | M11: 7406.667862 | N11: 37703789.84
A12: 84 | B12: 198 | C12: 2.716440785 | D12: 2.394807777 | E12: 203.880294 | F12: 34.57785787 | G12: 11.76058806 | H12: 987.8893969 | I12: 2.074974224 | J12: 1.814560982 | K12: 52.42721628 | L12: 3384.933391 | M12: 6679.832219 | N12: 34031003.4
A13: 15 | B13: 60 | C13: 2.074974224 | D13: 1.814560982 | E13: 29.29338896 | F13: 942.8959615 | G13: -61.41322208 | H13: -921.1983312 | I13: 1.846339229 | J13: 1.436876399 | K13: 18.27508478 | L13: 2093.093874 | M13: 6389.007381 | N13: 30712763.7
A14: 42 | B14: 114 | C14: 1.846339229 | D14: 1.436876399 | E14: 62.195148 | F14: 2683.74269 | G14: -103.609704 | H14: -4351.607568 | I14: 2.06775837 | J14: 1.407493788 | K14: -18.29035186 | L14: 159.6834416 | M14: 6823.603719 | N14: 29535136.17
A15: 62 | B15: 154 | C15: 2.06775837 | D15: =J14 -> 1.407493788 | E15: 89.33237321 | F15: 4181.901955 | G15: -129.3352536 | H15: -8018.785722 | I15: 2.65153278 | J15: 1.806732232 | K15: -51.60382237 | L15: -2293.857308 | M15: 7814.004129 | N15: 33011715
A16: 47 | B16: 124 | C16: 2.65153278 | D16: 1.806732232 | E16: 87.5679477 | F16: 1327.294435 | G16: -72.8641046 | H16: -3424.612916 | I16: 3.318232807 | J16: 2.280540435 | K16: -57.98190704 | L16: -2633.08399 | M16: 7563.52149 | N16: 30883340.86
A17: 35 | B17: 100 | C17: 3.318232807 | D17: 2.280540435 | E17: 83.13714803 | F17: 284.3557765 | G17: -33.72570394 | H17: -1180.399638 | I17: 3.92772694 | J17: 2.696274801 | K17: -50.70504611 | L17: -2197.278684 | M17: 6920.911652 | N17: 27934341.11
A18: 9 | B18: 48 | C18: 3.92772694 | D18: 2.696274801 | E18: 28.19420015 | F18: 392.2697076 | G18: -39.61159969 | H18: -356.5043973 | I18: 4.520600998 | J18: 3.02427789 | K18: -47.37701219 | L18: -1645.046398 | M18: 6385.72837 | N18: 25153616.54
A19: 38 | B19: 106 | C19: 4.520600998 | D19: 3.02427789 | E19: 119.4431608 | F19: 180.7185732 | G19: 26.88632167 | H19: 1021.680223 | I19: 4.849603057 | J19: 3.201472658 | K19: -25.09801203 | L19: -845.0284118 | M19: 5819.442962 | N19: 22742637.93
A20: 44 | B20: 118 | C20: 4.849603057 | D20: 3.201472658 | E20: 145.7144 | F20: 768.087967 | G20: 55.42879999 | H20: 2438.867199 | I20: 4.862226357 | J20: 3.170937443 | K20: -0.9399684241 | L20: 140.1402716 | M20: 5544.733853 | N20: 21063181.46
A21: 99 | B21: 228 | C21: 4.862226357 | D21: 3.170937443 | E21: 318.7850333 | F21: 8241.922265 | G21: 181.5700665 | H21: 17975.43659 | I21: 4.27108941 | J21: 2.404097482 | K21: =K20*$K$1+$L$1*G21 -> 53.81304206 | L21: 5490.729166 | M21: 8287.029373 | N21: 51268495.36
A22: 13 | B22: 56 | C22: 4.27108941 | D22: 2.404097482 | E22: 35.52435668 | F22: 419.2519693 | G22: -40.95128664 | H22: -532.3667263 | I22: 3.980415204 | J22: 1.861951538 | K22: 25.38374345 | L22: 3683.800398 | M22: 7626.027224 | N22: 46169987.26
A23: 21 | B23: 72 | C23: 3.980415204 | D23: 1.861951538 | E23: 43.08139751 | F23: 836.2855701 | G23: -57.83720498 | H23: -1214.581305 | I23: 3.975494699 | J23: 1.51905507 | K23: 0.4174589214 | L23: 2214.285887 | M23: 7197.938729 | N23: 41700509.31
A24: 28 | B24: 86 | C24: 3.975494699 | D24: 1.51905507 | E24: 46.50903665 | F24: 1559.536186 | G24: -78.9819267 | H24: -2211.493948 | I24: 4.253191263 | J24: 1.375274296 | K24: -23.40235677 | L24: 886.5519369 | M24: 7101.959331 | N24: 38019528.92
A25: 20 | B25: 70 | C25: 4.253191263 | D25: 1.375274296 | E25: 31.75867718 | F25: 1462.398771 | G25: -76.48264565 | H25: -1529.652913 | I25: 4.724015634 | J25: 1.347726934 | K25: -39.32644343 | L25: 161.6904819 | M25: 6976.722906 | N25: 34451559.83
A26: 8 | B26: 46 | C26: 4.724015634 | D26: 1.347726934 | E26: 15.50583111 | F26: 929.8943366 | G26: -60.98833779 | H26: -487.9067023 | I26: 5.285915383 | J26: 1.353684893 | K26: -45.82501174 | L26: -33.18867334 | M26: 6651.00835 | N26: 31030209.15
A27: 64 | B27: 158 | C27: 5.285915383 | D27: 1.353684893 | E27: 91.92174856 | F27: 4366.335313 | G27: -132.1565029 | H27: -8458.016184 | I27: 6.101574991 | J27: 1.786011607 | K27: -71.72445908 | L27: -2560.636927 | M27: 7732.441641 | N27: 35080992.01
A28: 99 | B28: 228 | C28: 6.101574991 | D28: 1.786011607 | E28: 182.9167241 | F28: 2032.50177 | G28: -90.16655189 | H28: -8926.488637 | I28: 6.9779024 | J28: 2.496932383 | K28: -77.25708692 | L28: -4470.39244 | M28: 7772.198185 | N28: 39541112.75
A29: 70 | B29: 170 | C29: 6.9779024 | D29: 2.496932383 | E29: 181.7631692 | F29: 138.3721501 | G29: 23.52633844 | H29: 1646.843691 | I29: 7.53791398 | J29: 2.937003467 | K29: -47.02205931 | L29: -2635.221601 | M29: 7050.327226 | N29: 35858210.89
A30: 27 | B30: 84 | C30: 7.53791398 | D30: 2.937003467 | E30: 86.8370076 | F30: 8.048612104 | G30: 5.674015193 | H30: 153.1984102 | I30: 7.929658356 | J30: 3.253614699 | K30: -31.21323696 | L30: -1798.695597 | M30: 6348.513948 | N30: 32274736.77
A31: 17 | B31: 64 | C31: 7.929658356 | D31: 3.253614699 | E31: 63.24110824 | F31: 0.5759167071 | G31: -1.517783525 | H31: -25.80231992 | I31: 8.224730634 | J31: 3.48866695 | K31: -22.30460093 | L31: -1266.827614 | M31: 5713.89292 | N31: 29047329.67
A32: 8 | B32: 46 | C32: 8.224730634 | D32: 3.48866695 | E32: 36.13406623 | F32: 97.3366491 | G32: -19.73186753 | H32: -157.8549403 | I32: 8.523870955 | J32: 3.671357029 | K32: -21.53278091 | L32: -934.135812 | M32: 5181.438288 | N32: 26145088.52
E33: loss | F33: =SQRT(SUM(F4:F32)) -> 235.2815072 | K33: 4.223800054 | L33: -15.96666111 | M33: 672.901089 | N33: 2666772.931
E34: ft-1 | F34: 239.7984993
E35: ft-2 | F35: 119.8992496
E36: r_t | F36: =ABS(ft_1-ft_2)/MIN(ft_1,ft_2) -> 1
E37: dt-1 | F37: 1 | H37: beta
E38: dt | F38: =dt_1*H38+(1-H38)*rtee -> 1 | H38: 0.9

Sheet adagrad_ann
B1: b | C1: 29.40624579 | D1: learn | F1: 0.2758546609 | G1: 16.18612259 | H1: 100 | J1: 0.008150279597
B2: a | C2: 2.021711011 | D2: 0.00390625 | F2: =$D$2/F1 -> 0.01416053652 | G2: =$D$2/G1 -> 0.0002413332766
A3: x | B3: y | C3: b | D3: a | E3: pred | F3: de/db | G3: de/da | H3: new a | I3: new b
A4: 14 | B4: 58 | C4: =C1 -> 29.40624579 | D4: =C2 -> 2.021711011 | E4: =C4+D4*A4 -> 57.71019995 | F4: =2*(D4*A4+C4-B4) -> -0.5796001063 | G4: =F4*A4 -> -8.114401489 | H4: =D4-G4*$G$2 -> 2.023669286 | I4: =C4-F4*$F$2 -> 29.41445324
A5: 86 | B5: 202 | C5: =I4 -> 29.41445324 | D5: =H4 -> 2.023669286 | E5: =C5+D5*A5 -> 203.4500119 | F5: 2.900023711 | G5: 249.4020391 | H5: 1.963480275 | I5: 29.37338735
A6: 28 | B6: 86 | C6: =I5 -> 29.37338735 | D6: =H5 -> 1.963480275 | E6: =C6+D6*A6 -> 84.35083505 | F6: -3.298329908 | G6: -92.35323743 | H6: 1.985768184 | I6: 29.42009347
A7: 51 | B7: 132 | C7: =I6 -> 29.42009347 | D7: =H6 -> 1.985768184 | E7: =C7+D7*A7 -> 130.6942709 | F7: -2.611458261 | G7: -133.1843713 | H7: 2.017910005 | I7: 29.45707312
A8: 28 | B8: 86 | C8: 29.45707312 | D8: 2.017910005 | E8: 85.95855326 | F8: -0.08289347925 | G8: -2.321017419 | H8: 2.018470144 | I8: 29.45824694
A9: 29 | B9: 88 | C9: 29.45824694 | D9: 2.018470144 | E9: 87.9938811 | F9: -0.01223779002 | G9: -0.3548959105 | H9: 2.018555792 | I9: 29.45842023
A10: 72 | B10: 174 | C10: 29.45842023 | D10: 2.018555792 | E10: 174.7944373 | F10: 1.588874503 | G10: 114.3989642 | H10: 1.990947515 | I10: 29.43592091
A11: 62 | B11: 154 | C11: 29.43592091 | D11: 1.990947515 | E11: 152.8746668 | F11: -2.2506663 | G11: -139.5413106 | H11: 2.024623477 | I11: 29.46779156
A12: 84 | B12: 198 | C12: 29.46779156 | D12: 2.024623477 | E12: 199.5361636 | F12: 3.072327217 | G12: 258.0754863 | H12: 1.962341274 | I12: 29.42428575
A13: 15 | B13: 60 | C13: 29.42428575 | D13: 1.962341274 | E13: 58.85940487 | F13: -2.281190269 | G13: -34.21785404 | H13: 1.970599181 | I13: 29.45658863
A14: 42 | B14: 114 | C14: 29.45658863 | D14: 1.970599181 | E14: 112.2217542 | F14: -3.556491537 | G14: -149.3726446 | H14: 2.006647771 | I14: 29.50695046
A15: 62 | B15: 154 | C15: =I14 -> 29.50695046 | D15: =H14 -> 2.006647771 | E15: 153.9191122 | F15: -0.1617755139 | G15: -10.03008186 | H15: 2.009068363 | I15: 29.50924129
A16: 47 | B16: 124 | C16: 29.50924129 | D16: 2.009068363 | E16: 123.9354544 | F16: -0.1290912815 | G16: -6.067290228 | H16: 2.010532602 | I16: 29.51106929
A17: 35 | B17: 100 | C17: 29.51106929 | D17: 2.010532602 | E17: 99.87971037 | F17: -0.2405792627 | G17: -8.420274194 | H17: 2.012564695 | I17: 29.51447602
A18: 9 | B18: 48 | C18: 29.51447602 | D18: 2.012564695 | E18: 47.62755827 | F18: -0.7448834538 | G18: -6.703951084 | H18: 2.014182581 | I18: 29.52502397
A19: 38 | B19: 106 | C19: 29.52502397 | D19: 2.014182581 | E19: 106.0639621 | F19: 0.1279241044 | G19: 4.861115967 | H19: 2.013009432 | I19: 29.5232125
A20: 44 | B20: 118 | C20: 29.5232125 | D20: 2.013009432 | E20: 118.0956275 | F20: 0.1912550136 | G20: 8.415220597 | H20: 2.010978559 | I20: 29.52050422
A21: 99 | B21: 228 | C21: 29.52050422 | D21: 2.010978559 | E21: 228.6073816 | F21: 1.214763184 | G21: 120.2615552 | H21: 1.981955444 | I21: 29.50330253
A22: 13 | B22: 56 | C22: 29.50330253 | D22: 1.981955444 | E22: 55.2687233 | F22: -1.462553403 | G22: -19.01319424 | H22: 1.986543961 | I22: 29.52401307
A23: 21 | B23: 72 | C23: 29.52401307 | D23: 1.986543961 | E23: 71.24143624 | F23: -1.517127524 | G23: -31.85967801 | H23: 1.994232761 | I23: 29.54549641
A24: 28 | B24: 86 | C24: 29.54549641 | D24: 1.994232761 | E24: 85.38401372 | F24: -1.23197257 | G24: -34.49523195 | H24: 2.002557608 | I24: 29.5629418
A25: 20 | B25: 70 | C25: 29.5629418 | D25: 2.002557608 | E25: 69.61409397 | F25: -0.7718120672 | G25: -15.43624134 | H25: 2.006282887 | I25: 29.57387107
A26: 8 | B26: 46 | C26: 29.57387107 | D26: 2.006282887 | E26: 45.62413417 | F26: -0.7517316638 | G26: -6.013853311 | H26: 2.00773423 | I26: 29.58451599
A27: 64 | B27: 158 | C27: 29.58451599 | D27: 2.00773423 | E27: 158.0795067 | F27: 0.1590134344 | G27: 10.1768598 | H27: 2.005278215 | I27: 29.58226428
A28: 99 | B28: 228 | C28: 29.58226428 | D28: 2.005278215 | E28: 228.1048076 | F28: 0.2096151513 | G28: 20.75189998 | H28: 2.000270091 | I28: 29.57929602
A29: 70 | B29: 170 | C29: 29.57929602 | D29: 2.000270091 | E29: 169.5982024 | F29: -0.8035952139 | G29: -56.25166497 | H29: 2.01384549 | I29: 29.59067536
A30: 27 | B30: 84 | C30: 29.59067536 | D30: 2.01384549 | E30: 83.96450358 | F30: -0.07099284375 | G30: -1.916806781 | H30: 2.014308079 | I30: 29.59168065
A31: 17 | B31: 64 | C31: 29.59168065 | D31: 2.014308079 | E31: 63.834918 | F31: -0.3301640098 | G31: -5.612788166 | H31: 2.015662632 | I31: 29.59635595
A32: 8 | B32: 46 | C32: 29.59635595 | D32: 2.015662632 | E32: 45.721657 | F32: -0.5566859914 | G32: -4.453487931 | H32: 2.016737406 | I32: 29.60423892
F33: =SQRT(SUMSQ(F4:F32))/COUNT(F4:F32) -> 0.2921401004 | G33: =SQRT(SUMSQ(G4:G32))/COUNT(G4:G32) -> 16.63019328 | H33: =SUMPRODUCT(histgrad,F2:G2) -> 0.008150279597

Sheet adam_ann
B1: b | C1: 29.99093977 | D1: learn | I1: beta | J1: 0.9 | K1: =1-J1 -> 0.1 | L1: 0.95 | M1: =1-L1 -> 0.05
B2: a | C2: 2.004163284 | D2: 0.00390625
A3: x | B3: y | C3: b | D3: a | E3: pred | F3: de/db | G3: de/da | H3: new b | I3: new a | J3: =J33 -> -0.04844194314 | K3: =K33 -> -4.064202551 | L3: =L33 -> 0.02527589589 | M3: =M33 -> 161.896154 | N3: 10.32628081
A4: 14 | B4: 58 | C4: =C1 -> 29.99093977 | D4: =C2 -> 2.004163284 | E4: =C4+D4*A4 -> 58.04922575 | F4: =2*(D4*A4+C4-B4) -> 0.09845150994 | G4: =F4*A4 -> 1.378321139 | H4: =C4-J4*$D$2/SQRT(L4) -> 29.99178216 | I4: =D4-K4*$D$2/SQRT(M4) -> 2.005271648 | J4: =J3*$J$1+$K$1*F4 -> -0.03375259783 | K4: =K3*$J$1+$K$1*G4 -> -3.519950182 | L4: =L3*$L$1+$M$1*F4^2 -> 0.02449673608 | M4: 153.8963348
A5: 86 | B5: 202 | C5: =H4 -> 29.99178216 | D5: =I4 -> 2.005271648 | E5: =C5+D5*A5 -> 202.4451439 | F5: 0.8902878546 | G5: 76.5647555 | H5: =C5-J5*$D$2/SQRT(L5) -> 29.99225529 | I5: =D5-K5*$D$2/SQRT(M5) -> 2.004435125 | J5: =J4*$J$1+$K$1*Intro!F5 -> -0.03037733805 | K5: =K4*$J$1+$K$1*G5 -> 4.488520386 | L5: 0.06290252248 | M5: 439.3096073
A6: 28 | B6: 86 | C6: =H5 -> 29.99225529 | D6: =I5 -> 2.004435125 | E6: =C6+D6*A6 -> 86.1164388 | F6: =2*(D6*A6+C6-B6) -> 0.2328775992 | G6: =F6*A6 -> 6.520572779 | H6: =C6-J6*$D$2/SQRT(L6) -> 29.99231861 | I6: 2.003540292 | J6: -0.004051844322 | K6: 4.691725625 | L6: 0.06246899517 | M6: 419.4700204
A7: 51 | B7: 132 | C7: =H6 -> 29.99231861 | D7: 2.003540292 | E7: =C7+D7*A7 -> 132.1728735 | F7: 0.3457470152 | G7: 17.63309777 | H7: 29.99184592 | I7: 2.002391175 | J7: 0.03092804163 | K7: 5.98586284 | L7: 0.06532259534 | M7: 414.0428262
A8: 28 | B8: 86 | C8: 29.99184592 | D8: 2.002391175 | E8: 86.05879883 | F8: 0.1175976527 | G8: 3.292734275 | H8: 29.99122847 | I8: 2.001266025 | J8: 0.03959500273 | K8: 5.716549984 | L8: 0.06274792597 | M8: 393.8827899
A9: 29 | B9: 88 | C9: 29.99122847 | D9: 2.001266025 | E9: 88.02794319 | F9: 0.05588638933 | G9: 1.62070529 | H9: 29.99056978 | I9: 2.000194543 | J9: 0.04122414139 | K9: 5.306965514 | L9: 0.05976669409 | M9: 374.3199846
A10: 72 | B10: 174 | C10: 29.99056978 | D10: 2.000194543 | E10: 174.0045769 | F10: 0.009153777058 | G10: 0.6590719482 | H10: 29.98994657 | I10: 1.999191536 | J10: 0.03801710496 | K10: 4.842176158 | L10: 0.05678254897 | M10: 355.6257042
A11: 62 | B11: 154 | C11: 29.98994657 | D11: 1.999191536 | E11: 153.9398218 | F11: -0.1203563908 | G11: -7.462096227 | H11: 29.98957602 | I11: 1.998427107 | J11: 0.02217975539 | K11: 3.611748919 | L11: 0.05466770456 | M11: 340.628563
A12: 84 | B12: 198 | C12: 29.98957602 | D12: 1.998427107 | E12: 197.857453 | F12: -0.2850939573 | G12: -23.94789241 | H12: 29.98971712 | I12: 1.998248998 | J12: -0.00854761588 | K12: 0.855784786 | L12: 0.05599824756 | M12: 352.2722124
A13: 15 | B13: 60 | C13: 29.98971712 | D13: 1.998248998 | E13: 59.96345209 | F13: -0.07309581713 | G13: -1.096437257 | H13: 29.98997056 | I13: 1.998107961 | J13: -0.01500243601 | K13: 0.6605625817 | L13: 0.0534654851 | M13: 334.7187105
A14: 42 | B14: 114 | C14: 29.98997056 | D14: 1.998107961 | E14: 113.9105049 | F14: -0.178990148 | G14: -7.517586214 | H14: 29.99050644 | I14: 1.998142256 | J14: -0.0314012072 | K14: -0.1572522979 | L14: 0.0523940845 | M14: 320.8084801
A15: 62 | B15: 154 | C15: 29.99050644 | D15: =I14 -> 1.998142256 | E15: 153.8753263 | F15: -0.2493473391 | G15: -15.45953503 | H15: 29.99141005 | I15: 1.998512649 | J15: -0.05319582039 | K15: -1.687480571 | L15: 0.05288308505 | M15: 316.7179173
A16: 47 | B16: 124 | C16: 29.99141005 | D16: 1.998512649 | E16: 123.9215046 | F16: -0.1569908961 | G16: -7.378572115 | H16: 29.99250467 | I16: 1.999018542 | J16: -0.06357532796 | K16: -2.256589725 | L16: 0.05147123787 | M16: 303.6041877
A17: 35 | B17: 100 | C17: 29.99250467 | D17: 1.999018542 | E17: 99.95815365 | F17: -0.08369270164 | G17: -2.929244557 | H17: 29.99365915 | I17: 1.999552652 | J17: -0.06558706533 | K17: -2.323855208 | L17: 0.04924789939 | M17: 288.853002
A18: 9 | B18: 48 | C18: 29.99365915 | D18: 1.999552652 | E18: 47.98963302 | F18: -0.0207339675 | G18: -0.1866057075 | H18: 29.99476236 | I18: 2.000050238 | J18: -0.06110175554 | K18: -2.110130258 | L18: 0.0468069993 | M18: 274.412093
A19: 38 | B19: 106 | C19: 29.99476236 | D19: 2.000050238 | E19: 105.9966714 | F19: -0.006657228962 | G19: -0.2529747006 | H19: 29.99579335 | I19: 2.000515816 | J19: -0.05565730289 | K19: -1.924414702 | L19: 0.04446886527 | M19: 260.6946882
A20: 44 | B20: 118 | C20: 29.99579335 | D20: 2.000515816 | E20: 118.0184892 | F20: 0.03697847969 | G20: 1.627053107 | H20: 29.99667435 | I20: 2.000905231 | J20: -0.04639372463 | K20: -1.569267922 | L20: =L19*$L$1+$M$1*F20^2 -> 0.0423137924 | M20: 247.7923188
A21: 99 | B21: 228 | C21: 29.99667435 | D21: 2.000905231 | E21: 228.0862922 | F21: 0.1725844872 | G21: 17.08586423 | H21: 29.997143 | I21: 2.000832043 | J21: =J20*$J$1+$K$1*F21 -> -0.02449590345 | K21: 0.2962452936 | L21: 0.04168737304 | M21: 249.9990407
A22: 13 | B22: 56 | C22: 29.997143 | D22: 2.000832043 | E22: 56.00795956 | F22: 0.01591912222 | G22: 0.2069485888 | H22: 29.99754444 | I22: 2.000759217 | J22: -0.02045440088 | K22: 0.2873156231 | L22: 0.03961567531 | M22: 237.5012301
A23: 21 | B23: 72 | C23: 29.99754444 | D23: 2.000759217 | E23: 72.01348799 | F23: 0.02697598249 | G23: 0.5664956322 | H23: 29.99786064 | I23: 2.000677242 | J23: -0.01571136255 | K23: 0.315233624 | L23: 0.03767127673 | M23: 225.6422144
A24: 28 | B24: 86 | C24: 29.99786064 | D24: 2.000677242 | E24: 86.01682341 | F24: 0.03364681798 | G24: 0.9421109034 | H24: 29.99808297 | I24: 2.000576422 | J24: -0.01077554449 | K24: 0.3779213519 | L24: 0.03584431831 | M24: 214.4044824
A25: 20 | B25: 70 | C25: 29.99808297 | D25: 2.000576422 | E25: 70.00961141 | F25: 0.01922282234 | G25: 0.3844564468 | H25: 29.99824752 | I25: 2.000472807 | J25: -0.00777570781 | K25: 0.3785748614 | L25: 0.03407057824 | M25: 203.6916486
A26: 8 | B26: 46 | C26: 29.99824752 | D26: 2.000472807 | E26: 46.00202998 | F26: 0.004059950119 | G26: 0.03247960095 | H26: 29.99839065 | I26: 2.000376218 | J26: -0.006592142017 | K26: 0.3439653354 | L26: 0.03236787349 | M26: 193.5071189
A27: 64 | B27: 158 | C27: 29.99839065 | D27: 2.000376218 | E27: 158.0224686 | F27: 0.04493719123 | G27: 2.875980239 | H27: 29.99842266 | I27: 2.000204365 | J27: -0.001439208692 | K27: 0.5971668257 | L27: 0.03085044737 | M27: 184.2453261
A28: 99 | B28: 228 | C28: 29.99842266 | D28: 2.000204365 | E28: 228.0186548 | F28: 0.03730953546 | G28: 3.693644011 | H28: 29.99836715 | I28: 1.999937142 | J28: 0.002435665723 | K28: 0.9068145442 | L28: 0.02937752507 | M28: 175.7152101
A29: 70 | B29: 170 | C29: 29.99836715 | D29: 1.999937142 | E29: 169.9939671 | F29: -0.0120658582 | G29: -0.8446100737 | H29: 29.99834411 | I29: 1.999715953 | J29: 0.0009855133315 | K29: 0.7316720824 | L29: 0.02791592807 | M29: 166.9651179
A30: 27 | B30: 84 | C30: 29.99834411 | D30: 1.999715953 | E30: 83.99067483 | F30: -0.01865033746 | G30: -0.5035591113 | H30: 29.99836756 | I30: 1.999527337 | J30: -0.0009780717473 | K30: 0.608148963 | L30: 0.02653752342 | M30: 158.6295406
A31: 17 | B31: 64 | C31: 29.99836756 | D31: 1.999527337 | E31: 63.99033229 | F31: -0.01933542029 | G31: -0.3287021449 | H31: 29.99843676 | I31: 1.999363635 | J31: -0.002813806601 | K31: 0.5144638523 | L31: 0.02522934017 | M31: 150.7034658
A32: 8 | B32: 46 | C32: 29.99843676 | D32: 1.999363635 | E32: 45.99334584 | F32: -0.01330831389 | G32: -0.1064665112 | H32: 29.99853422 | I32: 1.999215952 | J32: -0.003863257331 | K32: 0.4523708159 | L32: 0.02397672872 | M32: 143.1688593
F33: =SQRT(SUMSQ(F4:F32))/COUNT(F4:F32) -> 0.0386863025 | G33: =SQRT(SUMSQ(G4:G32))/COUNT(G4:G32) -> 2.994129034 | J33: -0.04844194314 | K33: -4.064202551 | L33: 0.02527589589 | M33: 161.896154 | N33: =SQRT(L33)+SQRT(M33) -> 12.8828259
K34: =1/K3 -> -0.2460507289 | L34: =1/L3 -> 39.56338499 | N34: =avg_grad2/prev_grad2 -> 1.247576561
